Cogmind - Beta 14 @@@ ROGUE MODE // 2024.11.18 @ 15:56:26 Player: Komeiji O. Result: Destroyed by B-86 Titan with Railgun Performance ------------- Evolutions (7) 3500 Regions Visited (11) 2200 Robots Destroyed (64) 320 Value Destroyed (2344) 2344 Prototype IDs (15) 300 Alien Tech Used (0) 0 Bonus (913) 913 TOTAL SCORE: 9577 Bonus ------- Follower Combat Kills 690 Registered with UFD 300 Friendly Fire -77 Cogmind --------- Core Integrity 0/1300 Matter 91/300 Energy 88/100 System Corruption 24% Temperature Cool (0) Movement Core (50) Location -3/Research Parts ------- > --- POWER (1) -------- (None) > --- PROPULSION (2) --- (None) > --- UTILITY (16) ----- (None) > --- WEAPON (2) ------- (None) > --- INVENTORY (5) ---- Experimental Matter Compressor (134) Cooled Proton Cannon Improved Remote Datajack Improved Plasma Cutter Chainsword Peak State ------------ > --- POWER ------------ Light Particle Reactor > --- PROPULSION ------- Overtuned Huge Scrapsphere > --- UTILITY ---------- Scrap Suit High-capacity Storage Unit Advanced Visual Processing Unit Advanced Sensor Array Experimental Terrain Scan Processor Seismic Detector Advanced Targeting Computer Improved Transmission Jammer Cloaking Device Layered Medium Armor Plating Enhanced Scrap Shield Experimental Thermal Shield Hacking Suite Makeshift Hacking Suite > --- WEAPON ----------- Hardcell Cannon Hypervelocity Mass Driver > --- INVENTORY -------- Micro Antimatter Reactor Wheel High-density Centrium Wheel Matter Compressor Improved Kinecellerator Phase Shifter Improved Light Armor Plating Improved Focal Shield Thermal Shield System Shield Authchip [Device] Mini Drone Bay Compact HERF Cannon Matter Neutralizer Matter Neutralizer Improved Proton Missile Launcher Improved Remote Datajack Improved Plasma Cutter Chainsword DRS Beacon [Rating: 118] Favorites ----------- Power Ion Engine Engine Ion Engine Power Core Neutrino Core Reactor Light Particle Reactor Propulsion Subdweller Monowheel Treads Light Treads Wheel Subdweller Monowheel Utility High-capacity Storage Unit Device Seismic Detector Storage High-capacity Storage Unit Processor Experimental Terrain Scan Processor Hackware Makeshift Hacking Suite Protection Layered Medium Armor Plating Weapon Subdweller Laser Energy Gun Subdweller Laser Energy Cannon Plasma Cannon Ballistic Gun Subdweller Machine Gun Ballistic Cannon Hypervelocity Mass Driver Launcher Grenade Launcher Special Weapon Junk Cannon Slashing Weapon Great Axe Build | -11 -10 -10 -7 -7 -5 -5 -5 -4 -4 -4 -3 ------- Run | Yrd Mat Sub Rec Scr Fac Was Fac Fac Upp Upp Res Slots Evolved 14 | . . . . . 10 . . 2 . . 2 Power . | . . . . . . . . . . . . Propulsion . | . . . . . . . . . . . . Utility 14 | . . . . . 10 . . 2 . . 2 Weapon . | . . . . . . . . . . . . Parts Attached 133 | 7 4 46 3 7 8 1 16 3 6 1 31 Power 13 | 1 . 3 . 2 1 . 2 1 1 . 2 Engine 7 | 1 . 3 . 1 1 . . . 1 . . Core 3 | . . . . 1 . . 2 . . . . Reactor 3 | . . . . . . . . 1 . . 2 Propulsion 12 | 2 1 3 1 2 . . . . 1 . 2 Treads 3 | 2 . 1 . . . . . . . . . Leg . | . . . . . . . . . . . . Wheel 9 | . 1 2 1 2 . . . . 1 . 2 Hover . | . . . . . . . . . . . . Flight . | . . . . . . . . . . . . Utility 54 | 2 1 14 . . 7 . 11 2 2 . 15 Device 32 | 1 . 11 . . 1 . 8 2 1 . 8 Storage 4 | 1 1 . . . . . 1 . . . 1 Processor 3 | . . . . . 2 . 1 . . . . Hackware 3 | . . . . . 2 . . . . . 1 Protection 12 | . . 3 . . 2 . 1 . 1 . 5 Artifact . | . . . . . . . . . . . . Weapon 54 | 2 2 26 2 3 . 1 3 . 2 1 12 Energy Gun 12 | 2 1 8 1 . . . . . . . . Energy Cannon 6 | . . . 1 . . . . . . . 5 Ballistic Gun 8 | . . 8 . . . . . . . . . Ballistic Cannon 7 | . . . . . . . 2 . 1 1 3 Launcher 11 | . . 6 . 1 . 1 . . 1 . 2 Special Weapon 8 | . 1 4 . 1 . . 1 . . . 1 Impact Weapon . | . . . . . . . . . . . . Slashing Weapon 2 | . . . . 1 . . . . . . 1 Piercing Weapon . | . . . . . . . . . . . . Special Melee Weapon . | . . . . . . . . . . . . Unidentified Prototypes 7 | . . . . 1 . . 1 . 1 . 4 Corrupted Parts 1 | . . . . . . . 1 . . . . System Corruption 4 | . . . . . . . 4 . . . . Parts Lost 30 | . . 6 . . . 2 1 . . 1 20 Power 3 | . . 2 . . . . . . . . 1 Propulsion 3 | . . 1 . . . . . . . . 2 Utility 16 | . . . . . . 2 1 . . 1 12 Weapon 8 | . . 3 . . . . . . . . 5 Highest Loss Streak 12 | . . 2 . . . 2 1 . . 1 12 To Critical Strikes . | . . . . . . . . . . . . Average Slot Usage (%) 91 | . 100 99 99 90 64 62 85 94 85 84 77 Engine 8 | . 14 13 14 10 5 5 1 . 1 5 . Core 1 | . . . . 3 . . 3 4 . . . Treads 5 | . 23 10 . . . . . . . . . Wheel 13 | . 4 17 28 22 5 5 5 5 5 5 4 Device 18 | . 14 11 14 14 11 11 27 36 27 26 27 Storage 11 | . 14 14 14 14 5 5 10 5 5 5 3 Processor 4 | . . . . . 9 11 11 15 15 15 12 Hackware 3 | . . . . . 8 11 11 10 10 10 5 Protection 2 | . . 2 . . 9 6 3 5 5 5 7 Energy Gun 8 | . 27 9 14 10 . . . . . . . Energy Cannon 2 | . . . 13 6 . . . . . . 1 Ballistic Gun 3 | . . 10 . . . . . . . . . Ballistic Cannon 1 | . . . . . . . 1 10 6 9 5 Launcher 1 | . . 3 . . . 2 . . 3 . . Special Weapon 2 | . . 3 . 3 5 1 4 . . . . Peak Build Rating 118 | 7 8 20 19 33 62 62 84 98 104 98 118 Average Rating 41 | 5 7 13 18 22 58 51 77 94 98 97 100 On Entrance 46 | . 7 8 13 18 33 62 44 84 98 96 94 Naked Turns 56 | . . . . . . . . . . . 56 Heaviest Build 108 | 15 50 60 57 59 84 84 90 90 98 97 108 Greatest Support 40 | 40 40 40 20 28 28 28 37 28 28 20 30 Greatest Overweight (x) 5 | . 4 5 5 5 2 2 3 3 4 4 5 Average Overweight (x) 3 | . 1 3 2 4 2 1 2 3 3 4 3 Largest Inventory Capacity 20 | 8 20 20 20 20 20 20 20 20 20 20 20 Average Capacity 19 | 7 11 20 20 20 20 20 20 20 20 20 19 Most Carried 20 | 5 15 20 20 20 19 18 20 20 20 20 20 Average Carried 18 | 3 9 19 19 19 14 16 18 19 19 20 17 Final Capacity 20 | 8 20 20 20 20 20 20 20 20 20 20 5 Final Carried 20 | 5 15 18 20 20 16 17 20 20 20 20 5 Class Distribution -------------------- 43% | Mutant 24% | Scavenger-Mutant 22% | Hacker-Skirmisher 4% | Commander-Skirmisher Dominant Class ---------------- Mutant | -10/Materials Mutant | -10/Subcaves Scavenger-Mutant | -7/Recycling Scavenger-Mutant | -7/Scraptown Scavenger-Mutant | -5/Factory Hacker-Mutant | -5/Waste Hacker-Skirmisher | -5/Factory Commander-Skirmisher | -4/Factory Hacker-Skirmisher | -4/Upper Caves Hacker-Skirmisher | -4/Upper Caves Hacker-Skirmisher | -3/Research Resources | -11 -10 -10 -7 -7 -5 -5 -5 -4 -4 -4 -3 ----------- Run | Yrd Mat Sub Rec Scr Fac Was Fac Fac Upp Upp Res Matter Collected 2828 | 257 53 742 132 330 . 48 328 191 233 107 407 Remotely . | . . . . . . . . . . . . Salvage Created 2291 | 44 141 434 . 111 . . 364 133 229 194 641 Parts 119 | 4 15 32 . 4 . . 12 . 16 3 33 Haulers Intercepted . | . . . . . . . . . . . . Recyclers Shooed 2 | . . . . . . . . . . . 2 Parts Field Recycled . | . . . . . . . . . . . . Retrieved Matter . | . . . . . . . . . . . . Parts Self-Destructed 38 | . . 15 . 2 . . . . 18 3 . Prevented 6 | . . . . . . . . . 6 . . Kills | -11 -10 -10 -7 -7 -5 -5 -5 -4 -4 -4 -3 ------- Run | Yrd Mat Sub Rec Scr Fac Was Fac Fac Upp Upp Res Combat Hostiles Destroyed 47 | . 3 17 . . . . 8 . 8 3 8 Guns 11 | . 3 8 . . . . . . . . . Cannons 17 | . . . . . . . 5 . 3 3 6 AOE 16 | . . 9 . . . . . . 5 . 2 Classes Destroyed 15 | 1 3 3 . . . . 4 1 . 1 2 Worker 3 | . . . . . . . 2 . . . 1 Builder 3 | . . . . . . . 2 . . . 1 Tunneler 2 | 2 . . . . . . . . . . . Recycler 1 | . . . . . . . . 1 . . . Operator 2 | . 1 . . . . . . . . . 1 Turret 2 | . . 2 . . . . . . . . . Watcher 4 | . 3 . . . . . . . . . 1 Swarmer 18 | . 3 7 . . . . 1 . 7 . . Grunt 11 | . . . . . . . 6 . 1 2 2 Sentry 1 | . . . . . . . . . . 1 . Specialist 2 | . . . . . . . . . . . 2 Hunter 2 | . . . . . . . . . . . 2 Programmer 3 | . . . . . . . 1 . . . 2 Artisan 1 | . . 1 . . . . . . . . . Subdweller 10 | . . 10 . . . . . . . . . Best Kill Streak 7 | 2 3 5 . . . . 5 1 4 2 7 Combat Bots Only 4 | . 3 3 . . . . 4 . 4 2 4 Max Kills in Single Turn 2 | 1 2 2 . . . . 2 1 2 1 2 Gunslinging . | . . . . . . . . . . . . Exploded 2 | . . 2 . . . . . . 2 . 2 Melee . | . . . . . . . . . . . . Uniques/NPCs Destroyed . | . . . . . . . . . . . . Combat | -11 -10 -10 -7 -7 -5 -5 -5 -4 -4 -4 -3 -------- Run | Yrd Mat Sub Rec Scr Fac Was Fac Fac Upp Upp Res Hostile Shots Fired 582 | . 7 98 18 . . 2 30 6 25 28 368 Missed 181 | . . 28 11 . . . 7 1 11 10 113 Damage Taken 7648 | . 90 1359 59 . . 78 601 107 247 326 4781 Core 1694 | . 26 203 16 . . 32 60 50 . . 1307 Absorbed by Shields . | . . . . . . . . . . . . Ignored by Resistances 700 | . . . . . . . 75 15 35 40 535 Core Remaining (%) 71 | 100 . . . 2 . . 90 . . 95 . Volleys Fired 210 | 3 14 80 3 . . 2 27 14 14 7 46 Largest 2 | 2 2 2 1 . . 1 2 2 2 2 2 Hottest 171 | 80 100 120 80 . . 39 114 114 123 131 171 Shots Fired 297 | 6 27 112 3 . . 2 35 23 17 13 59 Gun 94 | 6 26 62 . . . . . . . . . Cannon 122 | . . . 3 . . . 17 23 11 13 55 Launcher 40 | . . 29 . . . 2 . . 6 . 3 Special 41 | . 1 21 . . . . 18 . . . 1 Kinetic 132 | . . 38 . . . . 17 23 11 13 30 Thermal 66 | . 1 39 3 . . . . . . . 23 Explosive 25 | . . 23 . . . 2 . . . . . Electromagnetic 55 | 6 26 12 . . . . . . 6 . 5 Impact 18 | . . . . . . . 18 . . . . Robot Hit Streak 21 | 1 3 21 . . . . 7 9 6 3 11 Robot Miss Streak 4 | 2 4 2 . . . . 3 2 1 1 4 Penetration Max 1 | . . . . . . . 1 1 . . 1 Secondary Targets 1 | . . 1 . . . . . . . . . Max Gunslinging Chain 1 | . . 1 . . . . . . . . . Shots Hit Robots 145 | 2 11 54 . 6 . . 13 10 10 7 32 Core Hits 100 | 2 6 43 . 2 . . 8 3 12 3 21 Critical Kills 6 | . . . . . . . . . 2 2 2 Critical Parts Destroyed 7 | . . . . . . . 2 . 1 1 3 Critical Strikes 20 | . . . . 1 . . 5 . 3 4 7 Destroy 11 | . . . . . . . . . 3 3 5 Blast 6 | . . . . . . . 3 . . 1 2 Smash 2 | . . . . . . . 2 . . . . Sever 1 | . . . . 1 . . . . . . . Melee Attacks 7 | . . . . 6 . . . . . . 1 Impact . | . . . . . . . . . . . . Slashing 7 | . . . . 6 . . . . . . 1 Piercing . | . . . . . . . . . . . . Sneak Attacks . | . . . . . . . . . . . . Combat Hostiles . | . . . . . . . . . . . . Follow-up Attacks . | . . . . . . . . . . . . Damage Inflicted 6813 | 25 290 2081 6 481 . 102 1107 396 505 203 1617 Guns 1117 | 25 224 868 . . . . . . . . . Cannons 2149 | . . . . . . . 312 396 230 203 1008 Explosions 2227 | . 66 1213 . . . 102 . . 275 . 571 Melee 519 | . . . . 481 . . . . . . 38 Ramming 6 | . . . 6 . . . . . . . . Kinetic 2593 | . . 835 . . . . 312 396 230 203 617 Thermal 726 | . 66 353 . . . . . . . . 307 Explosive 875 | . . 773 . . . 102 . . . . . Electromagnetic 1299 | 25 224 120 . . . . . . 275 . 655 Impact 795 | . . . . . . . 795 . . . . Slashing 519 | . . . . 481 . . . . . . 38 Piercing . | . . . . . . . . . . . . Highest Corruption 23 | . . . . . . . 6 . . . 23 Average Corruption 8 | . . . . . . . 5 . . . 13 Corruption Purged . | . . . . . . . . . . . . Corruption Blocked . | . . . . . . . . . . . . Effects 29 | . . . . . . . 15 . . . 14 Message Errors 7 | . . . . . . . 4 . . . 3 Matter Fused 9 | . . . . . . . 5 . . . 4 Heat Flow Errors 1 | . . . . . . . . . . . 1 Energy Discharges 4 | . . . . . . . 4 . . . . Parts Fused 1 | . . . . . . . 1 . . . . Data Loss (minor) 3 | . . . . . . . . . . . 3 Data Loss (major) 1 | . . . . . . . . . . . 1 Misdirections 1 | . . . . . . . . . . . 1 Weapon Failures 2 | . . . . . . . 1 . . . 1 Overload Shots . | . . . . . . . . . . . . Overflow Damage 609 | . 18 16 . 47 . . 421 11 26 . 70 Projectiles 511 | . . . . . . . 421 11 26 . 53 Explosions 51 | . 18 16 . . . . . . . . 17 Melee 47 | . . . . 47 . . . . . . . Knockbacks 15 | . . . . . . . 5 . 2 . 8 Impact 4 | . . . . . . . 4 . . . . Kinetic 11 | . . . . . . . 1 . 2 . 8 Secondary . | . . . . . . . . . . . . Self-Inflicted Damage 252 | . 27 175 3 . . . . . . . 47 Shots 8 | . 1 4 . . . . . . . . 3 Rammed 2 | . . . 1 . . . . . . . 1 Targets Rammed 2 | . . . 1 . . . . . . . 1 Kicked . | . . . . . . . . . . . . Crushed . | . . . . . . . . . . . . Highest Temperature 398 | 36 72 90 80 . . . 117 99 108 180 398 Average Temperature 73 | 18 24 34 50 . . . 46 32 59 85 114 Received Heat Transfer 1128 | . . 225 18 . . . 201 27 69 69 519 Effects 1 | . . . . . . . . . . . 1 Shutdowns 1 | . . . . . . . . . . . 1 Siege Activations . | . . . . . . . . . . . . Robots Corrupted 4 | . . . . . . . 3 . . . 1 Combat Hostiles 3 | . . . . . . . 3 . . . . Parts Fried 7 | . 1 . . . . . 5 . . . 1 Impact Corruptions 10 | . . . . . . . 10 . . . . Robots Melted . | . . . . . . . . . . . . Combat Hostiles . | . . . . . . . . . . . . Parts Melted 2 | . . 2 . . . . . . . . . Heat Transferred 821 | . 100 425 . . . . . . . . 296 Parts Sabotaged . | . . . . . . . . . . . . Parts Stolen . | . . . . . . . . . . . . Parts Stripped . | . . . . . . . . . . . . Power Chain Reactions 3 | . 1 1 . . . . . . 1 . . Alert | -11 -10 -10 -7 -7 -5 -5 -5 -4 -4 -4 -3 ------- Run | Yrd Mat Sub Rec Scr Fac Was Fac Fac Upp Upp Res Peak Influence 488 | 10 120 . 83 . . 26 242 488 . . 214 Initial 124 | . 6 . 52 . . . 4 118 . . 124 Average 90 | 2 56 . 36 . . 7 102 251 . . 100 Maximum Alert Level 2 | . . . . . . . 1 2 . . 1 Low Security (%) 89 | 100 100 . 100 . 100 100 84 46 . . 95 Level 1 7 | . . . . . . . 15 28 . . 4 Level 2 2 | . . . . . . . . 25 . . . Level 3 . | . . . . . . . . . . . . Level 4 . | . . . . . . . . . . . . Level 5 . | . . . . . . . . . . . . High Security . | . . . . . . . . . . . . Max Security . | . . . . . . . . . . . . Squads Dispatched 8 | . . . . . . . 2 2 . . 4 Investigation 5 | . . . . . . . 1 2 . . 2 Extermination . | . . . . . . . . . . . . Reinforcement 3 | . . . . . . . 1 . . . 2 Assault . | . . . . . . . . . . . . Garrison . | . . . . . . . . . . . . Intercept . | . . . . . . . . . . . . Searches Triggered . | . . . . . . . . . . . . Construction Impeded 1 | . . . . . . . . . . . 1 Haulers Reinforced . | . . . . . . . . . . . . Active Scanning Responses . | . . . . . . . . . . . . Cargo Convoy Interrupts . | . . . . . . . . . . . . Stealth | -11 -10 -10 -7 -7 -5 -5 -5 -4 -4 -4 -3 --------- Run | Yrd Mat Sub Rec Scr Fac Was Fac Fac Upp Upp Res Distress Signals 2 | . . . . . . . 1 . . . 1 Communications Jammed 121 | . . . . . . . 16 1 . . 104 Distress Signals 121 | . . . . . . . 16 1 . . 104 Times Spotted 116 | . 8 21 1 . . 5 18 7 14 9 33 Peak Tracking Total 11 | . 3 6 1 . . 5 5 3 5 6 11 Tactical Retreats 10 | . . 1 1 . . . . . 2 1 5 Traps | -11 -10 -10 -7 -7 -5 -5 -5 -4 -4 -4 -3 ------- Run | Yrd Mat Sub Rec Scr Fac Was Fac Fac Upp Upp Res Traps Triggered 3 | . . 1 . . 1 . . . . . 1 Indirectly . | . . . . . . . . . . . . Trap Hack Attempts . | . . . . . . . . . . . . Triggered . | . . . . . . . . . . . . Disarmed . | . . . . . . . . . . . . Reprogrammed . | . . . . . . . . . . . . Reused . | . . . . . . . . . . . . Traps Extracted . | . . . . . . . . . . . . Installed . | . . . . . . . . . . . . Triggered . | . . . . . . . . . . . . Machines | -11 -10 -10 -7 -7 -5 -5 -5 -4 -4 -4 -3 ---------- Run | Yrd Mat Sub Rec Scr Fac Was Fac Fac Upp Upp Res Machines Disabled 16 | . 1 4 . . . . . 8 . . 3 Max in Single Turn 3 | . 1 3 . . . . . 1 . . 1 Garrison Access 3 | . . . . . . . 1 . . . 2 Machines Repaired . | . . . . . . . . . . . . Machines Dismantled . | . . . . . . . . . . . . Machines Sabotaged . | . . . . . . . . . . . . Overloaded Fab Kills . | . . . . . . . . . . . . Hacking | -11 -10 -10 -7 -7 -5 -5 -5 -4 -4 -4 -3 --------- Run | Yrd Mat Sub Rec Scr Fac Was Fac Fac Upp Upp Res Machines Accessed 28 | . 6 2 5 1 . . 2 5 1 . 6 Terminals 16 | . 6 . 4 . . . . 3 . . 3 Fabricators . | . . . . . . . . . . . . Repair Stations . | . . . . . . . . . . . . Recycling Units 5 | . . . 1 . . . 1 2 . . 1 Scanalyzers . | . . . . . . . . . . . . Garrison Access 3 | . . . . . . . 1 . . . 2 Total Hacks 60 | . 14 5 8 3 . . 4 15 1 . 10 Successful 36 | . 9 5 4 3 . . 2 8 1 . 4 Failed 24 | . 5 . 4 . . . 2 7 . . 6 Catastrophic 9 | . . . 1 . . . 1 4 . . 3 Database Lockouts . | . . . . . . . . . . . . Manual 27 | . 6 . 4 . . . 1 11 . . 5 Terminals 37 | . 14 . 6 . . . . 13 . . 4 Fabricators . | . . . . . . . . . . . . Repair Stations . | . . . . . . . . . . . . Recycling Units 8 | . . . 2 . . . 1 2 . . 3 Scanalyzers . | . . . . . . . . . . . . Garrison Access 6 | . . . . . . . 3 . . . 3 Terminal Hacks 24 | . 8 5 1 3 . . . 6 1 . . Record 9 | . . 4 . 3 . . . 2 . . . Part Schematic 4 | . 3 . . . . . . 1 . . . Robot Analysis 2 | . 2 . . . . . . . . . . Prototype ID Bank 1 | . 1 . . . . . . . . . . Open Door 2 | . . 1 . . . . . . 1 . . Branch Access Points 1 | . . . . . . . . 1 . . . Alert Level 1 | . . . . . . . . 1 . . . Locate Traps 3 | . 2 . . . . . . 1 . . . Zone Layout 1 | . . . 1 . . . . . . . . Fabricator Hacks . | . . . . . . . . . . . . Repair Station Hacks . | . . . . . . . . . . . . Recycling Unit Hacks 2 | . . . 1 . . . . . . . 1 Retrieve Components 2 | . . . 1 . . . . . . . 1 Scanalyzer . | . . . . . . . . . . . . Garrison Access Hacks 3 | . . . . . . . 1 . . . 2 Seal Access 3 | . . . . . . . 1 . . . 2 Unauthorized Hacks 7 | . 1 . 2 . . . 1 2 . . 1 Terminals 3 | . 1 . 2 . . . . . . . . Track 1 | . 1 . . . . . . . . . . Botnet 2 | . . . 2 . . . . . . . . Fabricators . | . . . . . . . . . . . . Repair Stations 4 | . . . . . . . 1 2 . . 1 Recycling Units . | . . . . . . . . . . . . Scrapoids 4 | . . . . . . . 1 2 . . 1 Scanalyzers . | . . . . . . . . . . . . Garrison Access . | . . . . . . . . . . . . Data Cores Recovered . | . . . . . . . . . . . . Used . | . . . . . . . . . . . . Hacking Detections 14 | . 4 . 2 . . . . 3 . . 5 Full Trace Events 1 | . . . . . . . . . . . 1 Feedback Events . | . . . . . . . . . . . . Feedback Blocked . | . . . . . . . . . . . . Robot Schematics Acquired . | . . . . . . . . . . . . Robots Built . | . . . . . . . . . . . . Authchips . | . . . . . . . . . . . . Time . | . . . . . . . . . . . . Total Robot Build Rating . | . . . . . . . . . . . . Part Schematics Acquired 4 | . 3 . . . . . . 1 . . . Parts Built . | . . . . . . . . . . . . Authchips . | . . . . . . . . . . . . Time . | . . . . . . . . . . . . Total Part Build Rating . | . . . . . . . . . . . . Parts Repaired . | . . . . . . . . . . . . Time . | . . . . . . . . . . . . Parts Recycled . | . . . . . . . . . . . . Recycled Matter . | . . . . . . . . . . . . Retrieved Matter . | . . . . . . . . . . . . Retrieved Components 8 | . . . 3 . . . . . . . 5 Parts Scanalyzed . | . . . . . . . . . . . . Part Schematics Acquired . | . . . . . . . . . . . . Parts Damaged . | . . . . . . . . . . . . Bothacking | -11 -10 -10 -7 -7 -5 -5 -5 -4 -4 -4 -3 ------------ Run | Yrd Mat Sub Rec Scr Fac Was Fac Fac Upp Upp Res Used RIF Installer . | . . . . . . . . . . . . Robots Hacked 1 | . . . . . . . . . . . 1 Non-combat . | . . . . . . . . . . . . Combat . | . . . . . . . . . . . . Robot Hacks Applied . | . . . . . . . . . . . . Manual 1 | . . . . . . . . . . . 1 Relay Couplers Released . | . . . . . . . . . . . . Fabnet Peak Effective % . | . . . . . . . . . . . . Robots Rewired . | . . . . . . . . . . . . Allies Hacked . | . . . . . . . . . . . . Hacks Repelled . | . . . . . . . . . . . . Allies | -11 -10 -10 -7 -7 -5 -5 -5 -4 -4 -4 -3 -------- Run | Yrd Mat Sub Rec Scr Fac Was Fac Fac Upp Upp Res Total Allies 21 | . . . . . . 1 5 10 . . 5 Largest Group 10 | . . . . . . 1 5 10 5 1 5 Highest-Rated Group 473 | . . . . . . 31 241 473 235 47 326 Highest-Rated Ally 67 | . . . . . . 31 50 50 47 47 67 Total Orders 4 | . . . . . . . 4 . . . . STAY 2 | . . . . . . . 2 . . . . FOLLOW 2 | . . . . . . . 2 . . . . Ally Attacks 169 | . . . . . . 6 33 75 31 2 22 Total Damage 3814 | . . . . . . 128 704 1707 617 59 599 Kills 22 | . . . . . . . 8 8 6 . . Allies Corrupted 1 | . . . . . . . . . . . 1 Allies Melted . | . . . . . . . . . . . . Intel | -11 -10 -10 -7 -7 -5 -5 -5 -4 -4 -4 -3 ------- Run | Yrd Mat Sub Rec Scr Fac Was Fac Fac Upp Upp Res Robot Analysis Total 2 | . 2 . . . . . . . . . . Derelict Logs Recovered 8 | . . 2 . 5 . . . . 1 . . Drone Launches . | . . . . . . . . . . . . Drone Recoveries . | . . . . . . . . . . . . Exploration | -11 -10 -10 -7 -7 -5 -5 -5 -4 -4 -4 -3 ------------- Run | Yrd Mat Sub Rec Scr Fac Was Fac Fac Upp Upp Res Turns Passed 10671 | 120 832 3072 730 2262 42 143 1015 448 688 416 903 Spaces Moved 6901 | 62 496 1873 517 1506 25 112 642 265 527 264 612 Core 101 | 2 . . . . . . . . . . 99 Treads 400 | 60 340 . . . . . . . . . . Legs . | . . . . . . . . . . . . Wheels 6400 | . 156 1873 517 1506 25 112 642 265 527 264 513 Hover . | . . . . . . . . . . . . Flight . | . . . . . . . . . . . . Fastest Speed 50 | 50 140 120 130 115 130 115 115 145 110 110 50 Average Speed 136 | 156 153 143 131 146 130 123 133 145 119 110 109 Slowest Speed 160 | 160 160 155 155 155 130 130 145 145 145 110 150 Overloaded Moves . | . . . . . . . . . . . . Propulsion Burnouts . | . . . . . . . . . . . . Robots Hopped . | . . . . . . . . . . . . Cave-ins Triggered . | . . . . . . . . . . . . Exploration Rate (%) 43 | 6 74 93 67 68 2 84 17 11 58 28 18 Regions Visited 11 Branch Regions 5 Pre-discovered Areas 4 | . . 3 . 1 . . . . . . . Known Exits Taken 1 | . . . . . . . . 1 . . . Unknown Exits Taken 8 | 1 1 1 1 1 . . 1 . 1 1 . Scrap Searched 18 | . . 9 . 5 . . . . 3 1 . Spaces Dug 76 | . 1 10 3 . . 18 11 12 8 1 12 Terrain Destroyed 274 | . 6 171 3 . . 31 16 16 9 3 19 Melee . | . . . . . . . . . . . . Projectile 66 | . 1 7 3 . . . 16 16 1 3 19 AOE 208 | . 5 164 . . . 31 . . 8 . . Terrain Rammed . | . . . . . . . . . . . . Walls Destroyed . | . . . . . . . . . . . . Machines Disabled . | . . . . . . . . . . . . Actions | -11 -10 -10 -7 -7 -5 -5 -5 -4 -4 -4 -3 --------- Run | Yrd Mat Sub Rec Scr Fac Was Fac Fac Upp Upp Res Total 7781 | 76 537 2086 566 1559 35 115 767 307 572 376 785 Wait 333 | . 9 43 29 . . . 57 21 6 105 63 Move 6891 | 61 495 1872 516 1505 25 111 641 264 526 263 612 Hop . | . . . . . . . . . . . . Pick Up 108 | 5 12 23 8 16 2 . 15 3 9 . 15 Fast Attach 21 | 7 . 1 1 2 . . 6 . 2 . 2 Attach 37 | . . 5 . 2 7 1 4 2 1 . 15 Detach 6 | . . 1 . 3 . 1 . . . . 1 Swap 75 | . 4 40 2 3 1 . 6 1 3 1 14 Drop 89 | . 3 21 6 20 . . 11 2 11 . 15 Fire 210 | 3 14 80 3 . . 2 27 14 14 7 46 Melee 7 | . . . . 6 . . . . . . 1 Ram 2 | . . . 1 . . . . . . . 1 Kick . | . . . . . . . . . . . . Crush . | . . . . . . . . . . . . Escape Stasis . | . . . . . . . . . . . . Rewire 2 | . . . . 2 . . . . . . . Trap . | . . . . . . . . . . . . Miscellaneous . | . . . . . . . . . . . . Route ------- -11/Scrapyard -10/Materials (discovered 3 exits: [*Mat] / [*Min] / *Sub) -10/Subcaves (discovered 2 exits: [*Mat] / *Rec) -7/Recycling -7/Scraptown (discovered 2 exits: [*Fac x2]) -5/Factory -5/Waste -5/Factory -4/Factory (discovered 4 exits: *Res / *Upp x2 / Arm) -4/Upper Caves -4/Upper Caves -3/Research History --------- Turn | Location | Event 14 | -11/Scrapyard | Discovered new exit (range 15) 121 | -11/Scrapyard | Entered Materials 265 | -10/Materials | Discovered new exit (range 5) 302 | -10/Materials | Build established: Mutant 468 | -10/Materials | Discovered new exit (range 16) 945 | -10/Materials | Discovered new exit (range 8) 953 | -10/Materials | Entered Subcaves 1617 | -10/Subcaves | Visited Clippyterm 1622 | -10/Subcaves | Learned location of Deep Caves (-7) 1622 | -10/Subcaves | Learned Factory fabricator intel 1758 | -10/Subcaves | Shifting Twisted Machinery released Sub. Power Source 1947 | -10/Subcaves | Shifting Twisted Machinery released Sub. Optics 2337 | -10/Subcaves | Learned location of Zion (-7) 2337 | -10/Subcaves | Met a Zionite searching for "candidates" 2444 | -10/Subcaves | Core integrity fell below 50% 2914 | -10/Subcaves | Disturbed a concealed Subdweller 3157 | -10/Subcaves | Ambushed by angry Subdweller bent on revenge 3206 | -10/Subcaves | Discovered new exit (range 13) 3387 | -10/Subcaves | Core integrity fell below 20% 3898 | -10/Subcaves | Discovered new exit (range 15) 4025 | -10/Subcaves | Entered Recycling 4325 | -7/Recycling | Build established: Scavenger-Mutant 4718 | -7/Recycling | Scanned before Scraplab entrance 4740 | -7/Recycling | Entered Scraplab 4752 | -7/Recycling | Discovered new exit (range 3) 4755 | -7/Recycling | Entered Scraptown 4931 | -7/Scraptown | Visited Cave Peace 5000 | -7/Scraptown | Scanned Subdweller tech in exchange for log data 5003 | -7/Scraptown | Learned 8 Research zone layouts 5005 | -7/Scraptown | Learned Research security intel 5007 | -7/Scraptown | Learned Research emergency access door positions 5008 | -7/Scraptown | Learned location of Extension (-6) 5010 | -7/Scraptown | Learned location of 1 exit from Proximity Caves 5024 | -7/Scraptown | Discovered new exit (range 11) 5114 | -7/Scraptown | Heard Great Nut preacher, LISTEN AND RECITE! 5158 | -7/Scraptown | Visited UFD Registry 5158 | -7/Scraptown | Registered with UFD as "Shadowlever" 5289 | -7/Scraptown | Visited Science Testing Area 5320 | -7/Scraptown | Visited Observation Area 5431 | -7/Scraptown | Visited Abandonware Association 5476 | -7/Scraptown | Delivered Scrap Shield to a Scientist 5659 | -7/Scraptown | Visited Junk Cannon Lab 5709 | -7/Scraptown | Visited LU-1G1's Boring Crew 5792 | -7/Scraptown | Visited Derelict Rescue Squad 5802 | -7/Scraptown | Found DRS Beacon 5977 | -7/Scraptown | Visited Scrapoid Research Area 6062 | -7/Scraptown | Visited Infowarlord's Domain 6175 | -7/Scraptown | Found Exp. Terrain Scan Processor 6217 | -7/Scraptown | Learned abandonware demo "POISON.EXE" 6269 | -7/Scraptown | Visited DA-N13 Charitable Foundation 6276 | -7/Scraptown | Found DCF Scrap (29 items) 6455 | -7/Scraptown | Found Prototype Special Weapon 6466 | -7/Scraptown | Identified Junk Cannon 6577 | -7/Scraptown | Visited Awakened 6622 | -7/Scraptown | Visited The Evicted 6677 | -7/Scraptown | Build established: Mutant 7006 | -7/Scraptown | Discovered new exit (range 5) 7017 | -7/Scraptown | Entered Factory 7017 | -5/Factory | Evolved 10 slots: Utility x10 7018 | -5/Factory | Loaded intel: 6 fabricator locations 7059 | -5/Factory | Sucked down chute 7059 | -5/Factory | Entered Waste 7060 | -5/Waste | Met a frightened Derelict 7092 | -5/Waste | Spotted C-40 Crusher 7095 | -5/Waste | Spotted C-40 Crusher 7095 | -5/Waste | Spotted C-40 Crusher 7125 | -5/Waste | Spotted C-40 Crusher 7141 | -5/Waste | Crushed by Compactor (1 part destroyed, 1 dropped) 7144 | -5/Waste | Crushed by Compactor (1 part destroyed) 7166 | -5/Waste | Spotted C-40 Crusher 7180 | -5/Waste | Discovered new exit (range 20) 7202 | -5/Waste | Entered Factory 7269 | -5/Factory | Scrapoids reinforcements arrived? 7605 | -5/Factory | Build established: Hacker-Skirmisher 7813 | -5/Factory | Found Scrap Suit 7835 | -5/Factory | Lost 3 allies 7912 | -5/Factory | Discovered new exit (range 16) 8217 | -5/Factory | Entered another Factory area 8217 | -4/Factory | Evolved 2 slots: Utility x2 8238 | -4/Factory | Identified exit to Upper Caves 8238 | -4/Factory | Identified exit to Armory 8387 | -4/Factory | Scrapoids reinforcements arrived? 8464 | -4/Factory | Discovered new exit (range 6) 8629 | -4/Factory | Scrapoid reinforcements arrived 8665 | -4/Factory | Entered Upper Caves 8665 | -4/Upper Caves | Accompanied by 5 allies 8667 | -4/Upper Caves | UFD Scientist delivered a prototype 8671 | -4/Upper Caves | Found Prototype Protection 8671 | -4/Upper Caves | Identified Enh. Scrap Shield 8687 | -4/Upper Caves | Lost 3 allies 8700 | -4/Upper Caves | Build established: Commander-Skirmisher 8900 | -4/Upper Caves | Lost 5 allies 9056 | -4/Upper Caves | Learned Research security intel 9192 | -4/Upper Caves | Build established: Hacker-Skirmisher 9282 | -4/Upper Caves | Discovered new exit (range 16) 9353 | -4/Upper Caves | Entered another Upper Caves area 9353 | -4/Upper Caves | Accompanied by 1 ally 9410 | -4/Upper Caves | Discovered new exit (range 16) 9444 | -4/Upper Caves | Attracted the attention of an 0b10 checkpoint 9769 | -4/Upper Caves | Entered Research 9769 | -3/Research | Evolved 2 slots: Utility x2 10154 | -3/Research | Spotted B-86 Titan 10155 | -3/Research | Found Prototype Device 10155 | -3/Research | Identified Exp. Thermal Shield 10198 | -3/Research | Infected Heavy with POISON.EXE 10349 | -3/Research | Scrapoid reinforcements arrived 10428 | -3/Research | Lost 5 allies 10499 | -3/Research | Lost 8 parts (1p1n5u1w) 10521 | -3/Research | System corruption reached 10% 10577 | -3/Research | Core integrity fell below 50% 10614 | -3/Research | Released all parts (9) 10643 | -3/Research | Lost 12 parts (1n7u4w) 10654 | -3/Research | Spotted B-86 Titan 10659 | -3/Research | Core integrity fell below 20% 10672 | -3/Research | Destroyed by B-86 Titan with Railgun Last Messages --------------- 10614_ Released Hdn. Centrium Wheel. 10614_ Dropped Corrupted Authchip [Device]. 10615_ Acquired Hcp. Storage Unit. 10618_ P-80 Master resets G-67 Veteran, system corruption cleaned. 10629_ System corrupted: Matter fused (-8). 10644_ System corrupted: Component data lost. 10658_ Knocked back. 10659_ Acquired 1 matter. 10660_ Critical hit (Burn: +37). 10661_ Connecting with Terminal... 10661_ ALERT: Suspicious activity at Terminal R009. Dispatching Investigation squad. 10661_ Slug penetrates Wall. 10661_ Penetrated by Slug. 10661_ Terminal disabled. 10667_ Acquired Prototype Energy Cannon. 10667_ Identified Cld. Proton Cannon. 10668_ Dropped Hcp. Storage Unit. [Achievement: I Think I Know What's Going On] [Achievement: Overachiever] Map ----- +----------------------------------------------------+ | | | | | | | | | | | | | | | | | | | | | | | | | | | | | | | | | | | | | | | ??????????????????????????????????????????? | | ??????????????###?????????#########???????? | | ??????????????# ?????????# !! #???????? | | ?????????######BB###?###### !! #???????? | | ?????????# BB ; ! ]#???????? | | ?????????# ;;;;#/##+######???????? | | ?????????# # @ #???????????? | | ?????????+ !! # #???????????? | | ?????????# !! =; #???????????? | | ?????????# =g ; p #???????????? | | ?????????# ##+########???????????? | | ?????????# # #??????????????? | | ?????????# # ]#??????????????? | | ????? g + #??????????????? | | ????????????####+## # #??????????????? | | ??????????????????# # #??????????????? | | ??????????????????# # * #??????????????? | | ??????????????????# ###########???????????? | | ??????????????????# #????? ???????????? | | ??????????????????# #????? ????????????? | | ??????????????????# #???? """ #?????? | | ??????????????????# ####? """ #?????? | | ??????????????????# # """ #?????? | | ??????????????????# # ""??????? | | ??????????????????# + ""??????? | | ???????????####???# # """ T"??????? | | ???????????# ??# # """ ? ????????? | | ???????????# * ??# #? """ ??????????? | | ???????????# ?# #? ???????????? | | ???????????# ?# #?? ???????????? | | ???????????# # #####+###??????????? | +----------------------------------------------------+ Best States ------------- Heat Dissipation 46 Coolant Potential 50 Energy Generation 25 Energy Capacity 515 Matter Stores 300 Matter Capacity 300 Sight Range 20 Robot Scan Range 16 Terrain Scan Range 16 Terrain Scan Density 1010 Jamming Range 14 Cloak Strength 2 Additional Mass Support 9 Armor Coverage 1025 Resistance: KI 25 Resistance: TH 30 Evasion (%) 50 Targeting Accuracy 8 Recoil Reduction 2 Offensive Hacking 21 Defensive Hacking 11 Authchip Count 1 Item Schematics ----------------- Hcp. Storage Unit | -10/Materials | Hacked Med. Storage Unit | -10/Materials | Hacked Lgt. Treads | -10/Materials | Hacked Enh. Nova Cannon | -4/Factory | Hacked Robot Schematics ------------------ None Fabricated ------------ Nothing Alien Tech Used ----------------- None Achievements -------------- I Think I Know What's Going On Overachiever Challenges ------------ None Game ------ Seed ConcussiveFocalReconstructor Manual? 0 Play Time 02:13:17 Cumulative 164.8 hours Start 2024.11.17 @ 13:38:37 End 2024.11.18 @ 15:56:26 Sessions 3 Manual Loads 0 Difficulty Rogue Special Mode None Game No. 59 Rogue 58 Adventurer 1 Explorer 0 Win Type - Total 3 Types 3/0/0/0/0/0/0/0/0 Lore% 50 Gallery% 63 Achievement% 50 Wizard Run 0 Options --------- Layout 0 ASCII 1 Keyboard 1 Movement Vi Keybinds 0 Fullscreen 2 Font 36/Terminus++ Map View 76x50 Zoom Use 0% Tactical HUD 1 Map Filters NONE Filters NONE Steam 1 RUN: a3c94c11-ea77-45f2-8a29-0f6f66e54d40